Workbook

Sheet NLTP (hidden)
D5: TOTAL APPROVED 18-21 NLTP ($000) | E5: TOTAL APPROVED 18-21 NLTP ($000)
D6: NOC | E6: non-NOC
C7: 111 | D7: 5255.129232 | E7: 60
C8: 112 | D8: 0 | E8: 0
C9: 113 | D9: 1784.163564 | E9: 30
C10: 114 | D10: 564 | E10: 705
C11: 121 | D11: 5834.414606 | E11: 2953
C12: 122 | D12: 2996.770128 | E12: 1358
C13: 123 | D13: 30 | E13: 25
C14: 124 | D14: 3 | E14: 0
C15: 131 | D15: 0 | E15: 0
C16: 151 | D16: 6091.298416 | E16: 1254
C17: 211 | D17: 0 | E17: 0
C18: 212 | D18: 11024.81522 | E18: 0
C19: 213 | D19: 1199.7016 | E19: 0
C20: 214 | D20: 3198.2 | E20: 0
C21: 215 | D21: 60 | E21: 2445
C22: 221 | D22: 0 | E22: 0
C23: 222 | D23: 312 | E23: 198
D25: =SUM(D7:E23) -> 47381.49277
C27: Check: | D27: =D25-#REF! -> 

Sheet Priorities (hidden)
C1: Priorities for 113 and renewal programme | I1: Priorities for all other activities
C2: LS - Included in approved NLTP | I2: LS - Included in approved NLTP
C3: LS - Not included in approved NLTP | I3: LS - Not included in approved NLTP
C4: LS - Increase from approved NLTP | I4: LS - Increase from approved NLTP
C5: Critical - Included NLTP allocation | I5: High - Included NLTP allocation
C6: Critical - Not included in approved NLTP | I6: High - Not included in approved NLTP
C7: Critical - Increase from NLTP allocation | I7: High - Increase from NLTP allocation
C8: High - Included NLTP allocation | I8: Medium - Included NLTP allocation
C9: High - Not included in approved NLTP | I9: Medium - Not included in approved NLTP
C10: High - Increase from NLTP allocation | I10: Medium - Increase from NLTP allocation
C11: Medium - Included NLTP allocation | I11: Low
C12: Medium - Not included in approved NLTP
C13: Medium - Increase from NLTP allocation
C14: Low

Sheet Explanatory notes
B3: Rut Filling & Large Signs Ranking example demonstrates: * Ranking the programme for different work types within each work category & assessing the risk for that specific activity. * Ability to move the bar within each work type to meet appetite for risk * Allows greater or lesser reduction in each activity dependant of risk tolerance to meet the bottom line 25% requirement.
B5: The 25% funding reduction tab becomes a summary of each activity class along with a narrative on the risk and management strategy totalling the proposed savings. Once the budgets have been set following National moderation, Network Teams can then simply move the bar. This will communicate what the reductions mean for regions resulting from the moderation.
B7: Completing a Z44 Assessment for the 3-year plan detailing the risks and controls will enable the wider team to deliver risk management during the 3 year programme. Performance in each area would then define any reprioritisation during the NLTP period.

Sheet 25% funding reduction - New
B2: Network Outcome Area: | C2: Contract Name
B3: Year: | C3: 21-24
E4: NLTP Period 2021-24 (funding reduction)
B5: Work Category | C5: Description | E5: 2021/2022 ($000) | F5: 2022/2023 ($000) | G5: Funding Request 2023/2024 ($000) | H5: TOTAL 21-24 NLTP ($000) | I5: Consequences of not funding the activity - Safety, Customer, Network condition and maintenance activities | J5: Quantity to be removed (Unit) | K5: Unit | L5: Link to additional information if available | M5: Risk to Budget (Potential Reactive Mtc $000) | N5: Risk (with mitigation and risk $ allowance)
B7: WC111 | C7: Customer LOS rutting (from rutting programme) | E7: 188 | F7: 150 | G7: 150 | H7: =E7+F7+G7 -> 488 | I7: Original application for $900k over the 3 year period has been reduced to $412k, a 54% reduction. Sites would more likely be selected based on surfacing renewal programmed areas and accident prone areas along with the higher ranking sites due to other factors. Consequence: The NC area will remain steady with similar lengths of rutting across the network with some deterioration in average rut depth increasing the lengths of rutting 10-19mm and >20mm. No improvements in pavement performance will be achieved. Risk levels will remain the same as existing. Some contractual issues may exist as the >20mm increases which is Contractors risk under their LS's. Mitigation: Review annual programmes and target critical/interdependent sites. May have to review the contractual issues for rutting quantities >20mm. | J7: 1640 | K7: m | L7: Link to Rutting Business Case | M7: 15 | N7: Medium
B8: WC222 | C8: Large Signs Renewals | E8: 60 | F8: 60 | G8: 60 | H8: =E8+F8+G8 -> 180 | I8: Original application for $456k over the 3 year period has been reduced to $275k a 40% reduction. This would mean all 'very poor' condition 5's and 75% of the condition 4's would be replaced. A further $150k reduction could be achieved through only replacing the condition 5 (very Poor) signs. Consequence: A backlog of deteriorated large signs will impact future funding needs. Work is only deferred. Potential for customer complaints as the network appears unmaintained and untidy. Reputational risk only. Mitigation: Will need to monitor reflectivity standards and customer complaints. Annual review and reprioritisation of renewals to minimise risk. A more responsive approach needed rather than a planned/condition based approach to renewals. | J8: 19 | K8: No | L8: Link to Signs Asset Information Summarry | M8: 20 | N8: Low
H9: =SUM(E9:G9) -> 0
H10: 0
H11: 0
H12: 0
H13: 0
H14: 0
H15: 0
H16: 0
H17: 0
H18: 0
H19: 0
H20: 0
H21: 0
H22: 0
H23: 0
H24: 0
H25: 0
H26: 0
H27: 0
H28: 0
H29: 0
H30: 0
H31: 0
H32: 0
C34: TOTAL Saving | E34: =SUM(E7:E33) -> 248 | F34: =SUM(F7:F33) -> 210 | G34: =SUM(G7:G33) -> 210 | H34: =SUM(H7:H33) -> 668 | L34: Risk | M34: =SUM(M7:M32) -> 35 | N34: =M34/H34 -> 0.05239520958
C35: Total Funding request | E35: =#REF! ->  | F35: =#REF! ->  | G35: =#REF! ->  | H35: =#REF! -> 
C36: % Reduction | E36: =E34/E35 ->  | H36: =H34/H35 -> 

Sheet PotentialRisks profile impacts (hidden)
B2: Network Outcome Area:
B3: Year: | E3: 20/21
H4: NLTP Period 2021-24
B5: Activity | C5: Work Category | E5: Description | F5: 2020/2021 ($000) | H5: 2021/2022 ($000) | I5: 2022/2023 ($000) | J5: Funding Request 2023/2024 ($000) | K5: TOTAL 21-24NLTP ($000)
X6: Escalation rate:
B7: Coal Tar Testing | C7: WC214 | D7: 111 Detail | E7: Coal Tar Policy and Procedures are still been developed. If we continue testing rehabs then initial screening for coal tar all rehab sites (10sites x 2tests x $500/test) | F7: 45 | H7: 45 | I7: 45 | J7: 45 | K7: =SUM(H7:J7) -> 135 | W7: LS Pavement Maintenance | X7: 0
B8: Coal Tar Disposal | C8: WC213 | D8: 111 Detail | E8: Possible 2x rehab sites requiring excavation and disposal annually due to coal tar discovery | F8: 500 | H8: 500 | I8: 500 | J8: 500 | K8: =SUM(H8:J8) -> 1500 | W8: Asset Growth | X8: 0
B9: Enhanced TTM | C9: WC123 | D9: 111 Detail | E9: Enhanced incident response on RONS (CSM2 and CNC). This is yet to be confirmed. | H9: 200 | I9: 200 | J9: 200 | K9: 600 | W9: Customer LOS roughness | X9: 0
B10: Route 70 support | C10: WC111 | D10: 111 Detail | E10: HDC and KDC handback of route 70. Potential for future support (maintenance or renewal) or use of detour. There is the risk that agreement with the local councils may not be able to be met. | F10: 250 | H10: 150 | I10: 100 | J10: 50 | K10: 300 | W10: Customer LOS rutting | X10: 0
B11: Winter Services | C11: WC121 | E11: Extended or extreme winter and additional Winter Services and Winter Management. We are seeing more adverse weather events. | F11: 300 | H11: 300 | I11: 300 | J11: 300 | K11: 900
B12: SH7 Maintenance | C12: WC111 | D12: 111 Detail | E12: SH7 additional maintenance claims due to reduction in life | F12: 300 | H12: 300 | I12: 300 | J12: 300 | K12: 900 | W12: T/10 treatments-Maint | X12: 0
B13: SH1S 90-185 Maintenance | C13: WC111 | E13: SH1 RS90-185. Currently this section is Principal Risk. We don’t believe that the tendered lump sums are going to be appropriate going forward. | F13: 500 | H13: 500 | I13: 500 | J13: 500 | K13: 1500
B14: Cost Recovery | C14: WC121 | E14: Cost Recovery. Incident damage not recovered from 3rd parties by NZTA | F14: 150 | H14: 150 | I14: 150 | J14: 150 | K14: 450
B15: Culvert Renewals SH1S 90-185 | C15: WC213 | D15: 111 Detail | E15: 50 culvert renewals in SH1 90-185 identified as potential EQ damage was removed from the NCTIR scope. Further CCTV is proposed for in the 20/21 year and these results could yield further renewals than projected. | F15: 0 | H15: 250 | I15: 250 | J15: 250 | K15: 750 | W15: DO SOME Maintenance (from renewals programme) | X15: 0
B16: COPTTM Variation | C16: WC123 | E16: COPTTM variation | F16: 500 | H16: 500 | I16: 500 | J16: 500 | K16: 1500
B17: Toilet Maintenance | C17: WC121 | E17: Addition of toilets throughout rest areas in North Canterbury is going to result in increased maintenance. North Canterbury NOC is applying for Rest Area Improvements (including the addition of toilets). This risk also applies to toilets in rest areas which NCTIR have recently constructed, funding for cleaning these may fall to NZTA. | H17: 100 | I17: 100 | J17: 100 | K17: 300
B18: ATP Renewal Quantities | C18: WC222 | E18: Additonal ATP delivered by SRA team and not yet accounted for in future renewals. Unknown quantities which will require replacement in future renewals. | F18: 50 | H18: 75 | I18: 100 | J18: 120 | K18: 295
B19: Asset Growth NCTIR | C19: WC111 | E19: Asset Growth in NCTIR area is unknown. Likely to impact Sealed Pavements, Drainage, Guardrails, Traffic Services | H19: 200 | I19: 200 | J19: 200 | K19: 600
B20: Asset Growth NCTIR | C20: WC113 | E20: Asset Growth in NCTIR area is unknown. Likely to impact Sealed Pavements, Drainage, Guardrails, Traffic Services | H20: 50 | I20: 50 | J20: 50 | K20: 150
B21: Asset Growth NCTIR | C21: WC114 | E21: Asset Growth in NCTIR area is unknown. Likely to impact Sealed Pavements, Drainage, Guardrails, Traffic Services | H21: 100 | I21: 100 | J21: 100 | K21: 300
B22: Asset Growth NCTIR | C22: WC122 | E22: Asset Growth in NCTIR area is unknown. Likely to impact Sealed Pavements, Drainage, Guardrails, Traffic Services | H22: 50 | I22: 50 | J22: 50 | K22: 150
B23: Asset Growth RONS | C23: WC111 | E23: Asset Growth in RONS for sealed pavement maintenance has been estimated only and $77k allowed for in Other Sealed Pavement Maintenance. Risk that actual cost will be higher. | F23: 0 | H23: 50 | I23: 50 | J23: 50 | K23: =SUM(H23:J23) -> 150
B24: Asset Growth RONS | C24: WC113 | E24: Asset Growth in RONS for drainage maintenance has been estimated only and $2.4k allowed for in Other Drainage Maintenance. Risk that actual cost will be higher. | F24: 0 | H24: 10 | I24: 10 | J24: 10 | K24: 30
B25: Asset Growth RONS | C25: WC121 | E25: Asset Growth in RONS for environmental maintenance has been estimated only and $75k allowed for in Other Environmental Maintenance. Risk that actual cost will be higher. | F25: 0 | H25: 50 | I25: 50 | J25: 50 | K25: 150
B26: Asset Growth RONS | C26: WC122 | E26: Asset Growth in RONS for Traffic Services maintenance has been estimated only and $9.2 allowed for in Other Traffic Services Maintenance. Risk that actual cost will be higher. | F26: 0 | H26: 10 | I26: 10 | J26: 10 | K26: 30
B27: Culvert Repair | C27: WC213 | E27: 110m long culvert under Christchurch Northern Motorway. Believed to be blocked 30m from upstream end. This places it under the motorway fill batter slope on western side. An allocation of $50k for further investigation and unblocking is requested under WC213. If excavation is required then serious cost due to sheet piling and underneath motorway fill batter. Allocation has been indicated in the Potential Risks Impacts Tab. | F27: 200 | H27: 50 | I27: 0 | J27: 0 | K27: 50
B28: Heavy Maintenance | C28: WC111 | E28: Particular capital projects or sites outside of the NOC may become a future liability to NZTA. These include: SH73 Mingha, SH1S Main North Road with handover to TLA, SH76 Halswell Road South with handover to TLA, SH73 Craigieburn Foam Bitumen site by 3rd party ahead of NOC. | F28: 150 | H28: 150 | I28: 150 | J28: 150 | K28: 450
K29: 0

Sheet 111 - rut fill ranking
B2: Ranked Large Signs for Full 21-24 NLTP
B4: SH | C4: RS | D4: RP (Start) | E4: RP (End) | F4: Length | G4: Cumulative | H4: Left or Right | I4: ONRC Classification | J4: % > 15 mm | K4: Next renewal (type/years) | L4: Proposed Treatment | M4: Rank | N4: Unit (length, m2, m3, No.) | O4: Quantity of Units | P4: Cost | Q4: Cumulative Cost
G5: Length
B6: Total for Rutting: | O6: =COUNT(O8:O28) -> 0 | Q6: =Q69 -> 0
B8: 99 | C8: 999 | D8: 13200 | E8: 13600 | F8: 300 | G8: =F8 -> 300 | H8: Right | I8: National | J8: 5 | K8: RS 2021/22 | L8: Microsurfacing Passing Lane B - HIGHEST PRIORITY SITE | P8: 5000 | Q8: =P8 -> 5000
B9: 99 | C9: 999 | D9: 13040 | E9: 13520 | F9: 280 | G9: =G8+F9 -> 580 | H9: Right | I9: National | J9: 8 | K9: RS 2021/22 | L9: Microsurfacing Passing Lane B - HIGHEST PRIORITY SITE | P9: 5000 | Q9: =Q8+P9 -> 10000
B10: 99 | C10: 999 | D10: 12000 | E10: 12080 | F10: 80 | G10: =G9+F10 -> 660 | H10: Left | I10: National | J10: 0 | K10: RS 2023/24 | L10: Microsurfacing Fake Rd Passing Lanes - HIGH PRIORITY | P10: 5000 | Q10: =Q9+P10 -> 15000
B11: 99 | C11: 999 | D11: 12260 | E11: 12360 | F11: 120 | G11: 780 | H11: Left | I11: National | J11: 0 | K11: RS 2023/24 | L11: Microsurfacing Fake Rd Passing Lanes - HIGH PRIORITY | P11: 5000 | Q11: 20000
B12: 99 | C12: 999 | D12: 11720 | E12: 12320 | F12: 400 | G12: 1180 | H12: Right | I12: National | J12: 5 | K12: RS 2023/24 | L12: Microsurfacing Fake Rd Passing Lanes - HIGH PRIORITY | P12: 5000 | Q12: 25000
B13: 99 | C13: 999 | D13: 8720 | E13: 9220 | F13: 460 | G13: 1640 | H13: Left | I13: National | J13: 42 | K13: RS 2026/27 | L13: Microsurfacing Fake Passing Lanes | P13: 5000 | Q13: 30000
B14: 99 | C14: 999 | D14: 5980 | E14: 6680 | F14: 460 | G14: 2100 | H14: Left | I14: National | J14: 26 | K14: RS 2028/29 | L14: Microsurfacing Fake Passing Lanes | P14: 5000 | Q14: 35000
B15: 99 | C15: 999 | D15: 8900 | E15: 9660 | F15: 680 | G15: 2780 | H15: Right | I15: National | J15: 21 | K15: RS 2026/27 | L15: Microsurfacing Passing Lanes | P15: 5000 | Q15: 40000
B16: 99 | C16: 999 | D16: 5940 | E16: 6720 | F16: 480 | G16: 3260 | H16: Left | I16: National | J16: 23 | K16: RS 2028/29 | L16: Microsurfacing Passing Lanes | P16: 5000 | Q16: 45000
B17: 99 | C17: 999 | D17: 6360 | E17: 6640 | F17: 200 | G17: 3460 | H17: Right | I17: National | J17: 10 | K17: RS 2028/29 | L17: Microsurfacing Passing Lanes | P17: 5000 | Q17: 50000
B18: 99 | C18: 999 | D18: 6240 | E18: 6980 | F18: 200 | G18: 3660 | H18: Right | I18: National | J18: 10 | K18: RS 2028/29 | L18: Microsurfacing Passing Lanes | P18: 5000 | Q18: 55000
B19: 99 | C19: 999 | D19: 6760 | E19: 7240 | F19: 500 | G19: 4160 | H19: Left | I19: National | J19: 24 | K19: RS 2027/28 | L19: Microsurfacing Passing Lanes | P19: 5000 | Q19: 60000
B20: 99 | C20: 999 | D20: 6760 | E20: 7240 | F20: 420 | G20: 4580 | H20: Left | I20: National | J20: 0 | K20: RS 2027/28 | L20: Microsurfacing Passing Lanes | P20: 5000 | Q20: 65000
B21: 99 | C21: 999 | D21: 6700 | E21: 7240 | F21: 400 | G21: 4980 | H21: Right | I21: National | J21: 0 | K21: RS 2027/28 | L21: Microsurfacing Passing Lanes | P21: 5000 | Q21: 70000
B22: 99 | C22: 999 | D22: 7120 | E22: 7240 | F22: 140 | G22: 5120 | H22: Right | I22: National | J22: 29 | K22: RS 2027/28 | L22: Microsurfacing Passing Lanes | P22: 5000 | Q22: 75000
B23: 99 | C23: 999 | D23: 9400 | E23: 9900 | F23: 200 | G23: 5320 | H23: Left | I23: Secondary Collector | J23: 0 | K23: RS 2031/32 | L23: Microsurfacing Fake Road | P23: 5000 | Q23: 80000
B24: 99 | C24: 999 | D24: 9400 | E24: 9900 | F24: 120 | G24: 5440 | H24: Right | I24: Secondary Collector | J24: 33 | K24: RS 2031/32 | L24: Microsurfacing Fake Road | P24: 5000 | Q24: 85000
B25: 99 | C25: 999 | D25: 14700 | E25: 15200 | F25: 200 | G25: 5640 | H25: Left | I25: Secondary Collector | J25: 20 | K25: RS 2022/23 | L25: Microsurfacing | P25: 5000 | Q25: 90000
B26: 99 | C26: 999 | D26: 14700 | E26: 15200 | F26: 140 | G26: 5780 | H26: Right | I26: Secondary Collector | J26: 13 | K26: RS 2022/23 | L26: Microsurfacing | P26: 5000 | Q26: 95000
B27: 99 | C27: 999 | D27: 6000 | E27: 6700 | F27: 320 | G27: 6100 | H27: Left | I27: Secondary Collector | J27: 25 | K27: RS 2030/31 | L27: Microsurfacing | P27: 5000 | Q27: 100000
B28: 99 | C28: 999 | D28: 6000 | E28: 6700 | F28: 180 | G28: 6280 | H28: Left | I28: Secondary Collector | J28: 22 | K28: RS 2030/31 | L28: Microsurfacing | P28: 5000 | Q28: 105000
B29: 99 | C29: 999 | D29: 5200 | E29: 6000 | F29: 220 | G29: 6500 | H29: Left | I29: Secondary Collector | J29: 9 | K29: RS 2031/32 | L29: Microsurfacing | P29: 5000 | Q29: 110000
B30: 99 | C30: 999 | D30: 5200 | E30: 6000 | F30: 260 | G30: 6760 | H30: Right | I30: Secondary Collector | J30: 46 | K30: RS 2031/32 | L30: Microsurfacing | P30: 5000 | Q30: 115000

Sheet 222 - large signs ranking
B2: Ranked Large Signs for Full 21-24 NLTP
B4: SH | C4: RS | D4: RP (Start) | E4: RP (End) | F4: Length | G4: Location Name | H4: Proposed Treatment | I4: Rank | J4: Unit (length, m2, m3, No.) | K4: Quantity of Units | L4: $ / Unit | M4: Cumulative Cost
B6: Total for Large Signs: | H6: =COUNTIF(H7:H27,"*") -> 21 | K6: =COUNT(K7:K27) -> 21 | M6: =M80 -> 370000
B7: 99 | C7: 999 | D7: 8098 | G7: Left | H7: PASSING LANE ""4"" km AHEAD | I7: 1 | J7: No | K7: 1 | L7: 5000 | M7: 5000
B8: 99 | C8: 999 | D8: 15909 | G8: Left | H8: BEACH TURN LEFT 400M | I8: 2 | J8: No | K8: 1 | L8: 5000 | M8: =M7+L8 -> 10000
B9: 99 | C9: 999 | D9: 14105 | G9: Left | H9: NEXT RIGHT | I9: 3 | J9: No | K9: 1 | L9: 5000 | M9: 15000
B10: 99 | C10: 999 | D10: 3008 | G10: Right | H10: 300M ON RIGHT | I10: 4 | J10: No | K10: 1 | L10: 5000 | M10: 20000
B11: 99 | C11: 999 | D11: 2390 | G11: Left | H11: 300M ON RIGHT | I11: 5 | J11: No | K11: 1 | L11: 5000 | M11: 25000
B12: 99 | C12: 999 | D12: 15495 | G12: Left | H12: 300M ON RIGHT | I12: 6 | J12: No | K12: 1 | L12: 5000 | M12: 30000
B13: 99 | C13: 999 | D13: 9519 | G13: Left | H13: 300M ON RIGHT | I13: 7 | J13: No | K13: 1 | L13: 5000 | M13: 35000
B14: 99 | C14: 999 | D14: 14002 | G14: Right | H14: 300M ON RIGHT | I14: 8 | J14: No | K14: 1 | L14: 5000 | M14: 40000
B15: 99 | C15: 999 | D15: 5818 | G15: Right | H15: 300M ON RIGHT | I15: 9 | J15: No | K15: 1 | L15: 5000 | M15: 45000
B16: 99 | C16: 999 | D16: 5552 | G16: Right | H16: 300M ON RIGHT | I16: 10 | J16: No | K16: 1 | L16: 5000 | M16: 50000
B17: 99 | C17: 999 | D17: 7996 | G17: Left | H17: 300M ON RIGHT | I17: 11 | J17: No | K17: 1 | L17: 5000 | M17: 55000
B18: 99 | C18: 999 | D18: 8708 | G18: Right | H18: 300M ON RIGHT | I18: 12 | J18: No | K18: 1 | L18: 5000 | M18: 60000
B19: 99 | C19: 999 | D19: 15630 | G19: Left | H19: 300M ON RIGHT | I19: 13 | J19: No | K19: 1 | L19: 5000 | M19: 65000
B20: 99 | C20: 999 | D20: 297 | G20: Left | H20: 300M ON RIGHT | I20: 14 | J20: No | K20: 1 | L20: 5000 | M20: 70000
B21: 99 | C21: 999 | D21: 3324 | G21: Right | H21: PASSING LANE 2KM AHEAD | I21: 15 | J21: No | K21: 1 | L21: 5000 | M21: 75000
B22: 99 | C22: 999 | D22: 9406 | G22: Right | H22: PASSING LANE 2KM AHEAD | I22: 16 | J22: No | K22: 1 | L22: 5000 | M22: 80000
B23: 99 | C23: 999 | D23: 9985 | G23: Left | H23: PASSING LANE 2KM AHEAD | I23: 17 | J23: No | K23: 1 | L23: 5000 | M23: 85000
B24: 99 | C24: 999 | D24: 15351 | G24: Right | H24: PASSING LANE 2KM AHEAD | I24: 18 | J24: No | K24: 1 | L24: 5000 | M24: 90000
B25: 99 | C25: 999 | D25: 12009 | G25: Right | H25: PASSING LANE 2KM AHEAD | I25: 19 | J25: No | K25: 1 | L25: 5000 | M25: 95000
B26: 99 | C26: 999 | D26: 205 | G26: Left | H26: ROAD INFORMATION | I26: 20 | J26: No | K26: 1 | L26: 5000 | M26: 100000
B27: 99 | C27: 999 | D27: 1337 | G27: Centre | H27: ROAD INFORMATION | I27: 21 | J27: No | K27: 1 | L27: 5000 | M27: 105000
B28: 99 | C28: 999 | D28: 6546 | G28: Right | H28: ROAD INFORMATION | I28: 22 | J28: No | K28: 1 | L28: 5000 | M28: 110000
B29: 99 | C29: 999 | D29: 2340 | G29: Left | H29: ROAD INFORMATION | I29: 23 | J29: No | K29: 1 | L29: 5000 | M29: 115000
B30: 99 | C30: 999 | D30: 2517 | G30: Centre | H30: ROAD INFORMATION | I30: 24 | J30: No | K30: 1 | L30: 5000 | M30: 120000
B31: 99 | C31: 999 | D31: 2736 | G31: Right | H31: Passing Lane | I31: 25 | J31: No | K31: 1 | L31: 5000 | M31: 125000
B32: 99 | C32: 999 | D32: 6918 | G32: Left | H32: Passing Lane | I32: 26 | J32: No | K32: 1 | L32: 5000 | M32: 130000
B33: 99 | C33: 999 | D33: 307 | G33: Left | H33: Passing Lane | I33: 27 | J33: No | K33: 1 | L33: 5000 | M33: 135000
B34: 99 | C34: 999 | D34: 2033 | G34: Right | H34: Passing Lane | I34: 28 | J34: No | K34: 1 | L34: 5000 | M34: 140000
B35: 99 | C35: 999 | D35: 1446 | G35: Left | H35: Passing Lane | I35: 29 | J35: No | K35: 1 | L35: 5000 | M35: 145000
B36: 99 | C36: 999 | D36: 8441 | G36: Right | H36: Passing Lane | I36: 30 | J36: No | K36: 1 | L36: 5000 | M36: 150000
B37: 99 | C37: 999 | D37: 12315 | G37: Right | H37: Passing Lane | I37: 31 | J37: No | K37: 1 | L37: 5000 | M37: 155000
B38: 99 | C38: 999 | D38: 10474 | G38: Left | H38: Turn Right 300m | I38: 32 | J38: No | K38: 1 | L38: 5000 | M38: 160000
B39: 99 | C39: 999 | D39: 750 | G39: Left | H39: Turn Right 300m | I39: 33 | J39: No | K39: 1 | L39: 5000 | M39: 165000
B40: 99 | C40: 999 | D40: 9328 | G40: Left | H40: Turn Right 300m | I40: 34 | J40: No | K40: 1 | L40: 5000 | M40: 170000
B41: 99 | C41: 999 | D41: 9328 | G41: Right | H41: Turn Right 300m | I41: 35 | J41: No | K41: 1 | L41: 5000 | M41: 175000
B42: 99 | C42: 999 | D42: 2551 | G42: Left | H42: Turn Right 300m | I42: 36 | J42: No | K42: 1 | L42: 5000 | M42: 180000
B43: 99 | C43: 999 | D43: 4267 | G43: Right | H43: Turn Right 300m | I43: 37 | J43: No | K43: 1 | L43: 5000 | M43: 185000
B44: 99 | C44: 999 | D44: 11601 | G44: Right | H44: Turn Right 300m | I44: 38 | J44: No | K44: 1 | L44: 5000 | M44: 190000
B45: 99 | C45: 999 | D45: 13532 | G45: Left | H45: Turn Right 300m | I45: 39 | J45: No | K45: 1 | L45: 5000 | M45: 195000
B46: 99 | C46: 999 | D46: 3417 | G46: Left | H46: Turn Right 300m | I46: 40 | J46: No | K46: 1 | L46: 5000 | M46: 200000
B47: 99 | C47: 999 | D47: 3703 | G47: Left | H47: Turn Right 300m | I47: 41 | J47: No | K47: 1 | L47: 5000 | M47: 205000
B48: 99 | C48: 999 | D48: 4620 | G48: Left | H48: PASSING LANE 4 km AHEAD | I48: 42 | J48: No | K48: 1 | L48: 5000 | M48: 210000
B49: 99 | C49: 999 | D49: 6328 | G49: Right | H49: PASSING LANE 4 km AHEAD | I49: 43 | J49: No | K49: 1 | L49: 5000 | M49: 215000
B50: 99 | C50: 999 | D50: 6609 | G50: Left | H50: PASSING LANE 4 km AHEAD | I50: 44 | J50: No | K50: 1 | L50: 5000 | M50: 220000
B51: 99 | C51: 999 | D51: 18341 | G51: Right | H51: SH 99 Next Left | I51: 45 | J51: No | K51: 1 | L51: 5000 | M51: 225000
B52: 99 | C52: 999 | D52: 141 | G52: Centre | H52: SH 99 Next Left | I52: 46 | J52: No | K52: 1 | L52: 5000 | M52: 230000
B53: 99 | C53: 999 | D53: 1344 | G53: Right | H53: SH 99 Next Left | I53: 47 | J53: No | K53: 1 | L53: 5000 | M53: 235000
B54: 99 | C54: 999 | D54: 16918 | G54: Left | H54: SH 99 Next Left | I54: 48 | J54: No | K54: 1 | L54: 5000 | M54: 240000
B55: 99 | C55: 999 | D55: 2328 | G55: Right | H55: SH 99 Next Left | I55: 49 | J55: No | K55: 1 | L55: 5000 | M55: 245000
B56: 99 | C56: 999 | D56: 7679 | G56: Left | H56: SH 99 Next Left | I56: 50 | J56: No | K56: 1 | L56: 5000 | M56: 250000
B57: 99 | C57: 999 | D57: 139 | G57: Right | H57: SH 99 Next Left | I57: 51 | J57: No | K57: 1 | L57: 5000 | M57: 255000
B58: 99 | C58: 999 | D58: 14120 | G58: Right | H58: SH 99 Next Left | I58: 52 | J58: No | K58: 1 | L58: 5000 | M58: 260000
B59: 99 | C59: 999 | D59: 4407 | G59: Left | H59: SH 99 Next Left | I59: 53 | J59: No | K59: 1 | L59: 5000 | M59: 265000
B60: 99 | C60: 999 | D60: 4019 | G60: Left | H60: 80 | I60: 54 | J60: No | K60: 1 | L60: 5000 | M60: 270000
B61: 99 | C61: 999 | D61: 4019 | G61: Right | H61: 80 | I61: 55 | J61: No | K61: 1 | L61: 5000 | M61: 275000
B62: 99 | C62: 999 | D62: 9489 | G62: Left | H62: PASSING LANE 4KM AHEAD | I62: 56 | J62: No | K62: 1 | L62: 5000 | M62: 280000
B63: 99 | C63: 999 | D63: 7 | G63: Right | H63: PASSING LANE 4KM AHEAD | I63: 57 | J63: No | K63: 1 | L63: 5000 | M63: 285000
B64: 99 | C64: 999 | D64: 2326 | G64: Right | H64: PASSING LANE 1KM AHEAD | I64: 58 | J64: No | K64: 1 | L64: 5000 | M64: 290000
B65: 99 | C65: 999 | D65: 1319 | G65: Right | H65: 70 | I65: 59 | J65: No | K65: 1 | L65: 5000 | M65: 295000
B66: 99 | C66: 999 | D66: 1319 | G66: Left | H66: 70 | I66: 60 | J66: No | K66: 1 | L66: 5000 | M66: 300000
B67: 99 | C67: 999 | D67: 1319 | G67: Left | H67: 100 | I67: 61 | J67: No | K67: 1 | L67: 5000 | M67: 305000
B68: 99 | C68: 999 | D68: 8568 | G68: Left | H68: 100 | I68: 62 | J68: No | K68: 1 | L68: 5000 | M68: 310000
B69: 99 | C69: 999 | D69: 3511 | G69: Right | H69: 100 | I69: 63 | J69: No | K69: 1 | L69: 5000 | M69: 315000
B70: 99 | C70: 999 | D70: 3891 | G70: Centre | H70: 100 | I70: 64 | J70: No | K70: 1 | L70: 5000 | M70: 320000
B71: 99 | C71: 999 | D71: 7079 | G71: Left | H71: 100 | I71: 65 | J71: No | K71: 1 | L71: 5000 | M71: 325000
B72: 99 | C72: 999 | D72: 7079 | G72: Right | H72: 100 | I72: 66 | J72: No | K72: 1 | L72: 5000 | M72: =M71+L72 -> 330000
B73: 99 | C73: 999 | D73: 7079 | G73: Right | H73: FAKE ROAD TURN LEFT 150M | I73: 67 | J73: No | K73: 1 | L73: 5000 | M73: 335000
B74: 99 | C74: 999 | D74: 909 | G74: Right | H74: FAKE ROAD TURN LEFT 150M | I74: 68 | J74: No | K74: 1 | L74: 5000 | M74: 340000
B75: 99 | C75: 999 | D75: 8509 | G75: Right | H75: FAKE ROAD TURN LEFT 150M | I75: 69 | J75: No | K75: 1 | L75: 5000 | M75: 345000
B76: 99 | C76: 999 | D76: 5870 | G76: Left | H76: FAKE ROAD TURN LEFT 150M | I76: 70 | J76: No | K76: 1 | L76: 5000 | M76: 350000
B77: 99 | C77: 999 | D77: 6228 | G77: Right | H77: FAKE ROAD TURN LEFT 150M | I77: 71 | J77: No | K77: 1 | L77: 5000 | M77: 355000
B78: 99 | C78: 999 | D78: 7709 | G78: Left | H78: FAKE ROAD TURN LEFT 150M | I78: 72 | J78: No | K78: 1 | L78: 5000 | M78: 360000
B79: 99 | C79: 999 | D79: 7848 | G79: Left | H79: FAKE ROAD TURN LEFT 150M | I79: 73 | J79: No | K79: 1 | L79: 5000 | M79: 365000
B80: 99 | C80: 999 | D80: 5920 | G80: Left | H80: FAKE ROAD TURN LEFT 150M | I80: 74 | J80: No | K80: 1 | L80: 5000 | M80: 370000

Sheet WC241 (hidden)
E1: Current Version: | F1: =#REF! -> 
B2: WC 241 Preventative Maintenance
C4: Funding Request 2015/2016 ($000)
B5: Scour | C5: =SUM(C6:C9) -> 0
B10: Rockfall | C10: =SUM(C11:C14) -> 0
B15: Resilience | C15: =SUM(C16:C19) -> 0
B20: Preventative Maintenance | C20: =SUM(C21:C24) -> 0
B25: Total Associated Improvements | C25: =C5+C10+C15+C20 -> 0
B27: * Insert extra rows if required

Sheet Rehab - Sealed (hidden)
I1: Current Version: | J1: =#REF! -> 
B2: WC 214 PAVEMENT REHABILITATION -Sealed Pavement Rehab
B3: Annual Plan | E3: 2015/16
B4: Network Outcome Area:
B7: Project Schedule | Q7: Improvements
B8: Project Ref | C8: Year | D8: SH | E8: RS | F8: RP (Start) | G8: RP (End) | H8: Treatment Length Name | I8: Failure Mode (Use NOMAD codes) | J8: Proposed Treatment* | K8: Length (km) | L8: NPV | M8: Economic Efficiency (New) | N8: Prioritisation Assessment (New) | P8: Use $ at June 2014 | Q8: See Associated Improvements Section of SM018 for guidance | S8: Seal Width (m) | T8: Seal Length (km)
N9: % of Priority 1 rating | O9: % of Priority 2 rating | P9: 2015/2016 Estimated Cost ($000) | Q9: Associated Improvements (WC 231) ($000) | R9: Safety Justified Seal Widening (WC 341) ($000)
A10: ANNUAL PLAN
J36: Total Length | K36: =SUM(K10:K35) -> 0 | P36: =SUM(P10:P25) -> 0 | Q36: =SUM(Q10:Q35) -> 0 | R36: =SUM(R10:R35) -> 0 | S36: =SUM(S10:S35) -> 0
J37: Base Preservation Levels
J38: Variance | K38: =K37-K36 -> 0
J40: Final Length: | K40: =SUM(K10:K35) -> 0 | O40: Final dollars: | P40: =SUM(P10:P35) -> 0

Sheet Resurface - Chip Seal (hidden)
I1: Current Version: | J1: =#REF! -> 
B2: WC 212 SEALED ROAD SURFACING - CHIP SEALS
B3: Annual Plan | E3: 2015/16
B4: Network Outcome Area:
B9: Project Schedule
B10: Project Ref | C10: Year | D10: SH | E10: RS | F10: RP (Start) | G10: RP (End) | H10: Treatment Length Name | I10: Failure Mode (Use NOMAD codes) | J10: Proposed Treatment (Use NOMAD codes) | K10: Length (km) | L10: $/m2 | M10: Use $ at June 2014
M11: 2015/2016 Estimated Cost ($000)
A12: ANNUAL PLAN
J83: Total Length | K83: =SUM(K12:K82) -> 0 | M83: =SUM(M12:M82) -> 0
J84: Base Preservation Levels
J85: Variance | K85: =K84-K83 -> 0
J87: Final Length: | K87: =SUM(K12:K82) -> 0 | L87: Final dollars: | M87: =SUM(M12:M82) -> 0

Sheet Resurface TAC (hidden)
I1: Current Version: | J1: =#REF! -> 
B2: WC 212 SEALED ROAD SURFACING - THIN ASPHALTIC CEMENT
B3: Annual Plan | E3: 2015/16
B4: Network Outcome Area:
B9: Project Schedule
B10: Project Ref | C10: Year | D10: SH | E10: RS | F10: RP (Start) | G10: RP (End) | H10: Treatment Length Name | I10: Failure Mode (Use NOMAD codes) | J10: Proposed Treatment (Use NOMAD codes) | K10: Length (km) | L10: $/m2 | M10: Use $ at June 2014
M11: 2015/2016 Estimated Cost ($000)
A12: ANNUAL PLAN
J39: Total Length | K39: =SUM(K12:K38) -> 0 | M39: =SUM(M12:M38) -> 0
J40: Base Preservation Levels
J41: Variance | K41: =K40-K39 -> 0
J43: Final Length: | K43: =SUM(K12:K38) -> 0 | L43: Final dollars: | M43: =SUM(M12:M38) -> 0
